fUST/lending_fUST_20260526
["ID","MTS","AMOUNT","RATE_DAILY","PERIOD"]
[423001758,1779738640000,-5605.86,8.219e-05,2]
[423001761,1779738640000,-500.0,8.219e-05,2]
[423001759,1779738640000,-500.0,8.219e-05,2]
[423001763,1779738640000,-500.0,8.219e-05,2]
[423001796,1779738640000,-500.0,8.493e-05,2]
[423001749,1779738640000,-500.0,8.219e-05,2]
[423001795,1779738640000,-548.95,8.493e-05,2]
[423001830,1779738640000,-500.0,8.493e-05,2]
[423001834,1779738640000,-500.0,8.493e-05,2]
[423001833,1779738640000,-500.0,8.493e-05,2]
[423001832,1779738640000,-500.0,8.493e-05,2]
[423001835,1779738640000,-500.0,8.493e-05,2]
[423001840,1779738640000,-500.0,8.493e-05,2]
[423001836,1779738640000,-511.58,8.493e-05,2]
[423001837,1779738640000,-1705.83,8.493e-05,2]
[423001838,1779738640000,-500.0,8.493e-05,2]
[423001842,1779738640000,-500.0,8.493e-05,2]
[423001849,1779738640000,-690.04,8.493e-05,2]
[423001853,1779738640000,-500.0,8.493e-05,2]
[423001847,1779738640000,-528.64,8.493e-05,2]
[423001841,1779738640000,-500.0,8.493e-05,2]
[423001850,1779738640000,-500.0,8.493e-05,2]
[423001851,1779738640000,-500.0,8.493e-05,2]
[423001848,1779738640000,-775.55,8.493e-05,2]
[423001843,1779738640000,-722.54,8.493e-05,2]
[423001852,1779738640000,-500.0,8.493e-05,2]
[423001846,1779738640000,-589.81,8.493e-05,2]
[423001844,1779738640000,-500.0,8.493e-05,2]
[423001854,1779738640000,-500.0,8.493e-05,2]
[423001855,1779738640000,-786.57,8.493e-05,2]
[423001857,1779738640000,-1517.74,8.493e-05,2]
[423001856,1779738640000,-589.32,8.493e-05,2]
[423001858,1779738640000,-500.0,8.493e-05,2]
[423001859,1779738640000,-500.0,8.493e-05,2]
[423001799,1779738640000,-500.0,8.493e-05,2]
[423001845,1779738640000,-1201.0,8.493e-05,2]
[423001831,1779738640000,-500.0,8.493e-05,2]
[423001860,1779738640000,-500.0,8.493e-05,2]
[423001828,1779738640000,-500.0,8.493e-05,2]
[423001829,1779738640000,-2189.35,8.493e-05,2]
[423001802,1779738640000,-500.0,8.493e-05,2]
[423001801,1779738640000,-1770.14,8.493e-05,2]
[423001804,1779738640000,-1099.15,8.493e-05,2]
[423001803,1779738640000,-500.0,8.493e-05,2]
[423001805,1779738640000,-500.0,8.493e-05,2]
[423001806,1779738640000,-500.0,8.493e-05,2]
[423001807,1779738640000,-565.16,8.493e-05,2]
[423001808,1779738640000,-500.0,8.493e-05,2]
[423001812,1779738640000,-188.58231882,8.493e-05,2]
[423001809,1779738640000,-599.27,8.493e-05,2]
[423001810,1779738640000,-1213.9,8.493e-05,2]
[423001813,1779738640000,-500.0,8.493e-05,2]
[423001811,1779738640000,-1160.51,8.493e-05,2]
[423001798,1779738640000,-500.0,8.493e-05,2]
[423001815,1779738640000,-500.0,8.493e-05,2]
[423001814,1779738640000,-500.0,8.493e-05,2]
[423001825,1779738640000,-500.0,8.493e-05,2]
[423001824,1779738640000,-1160.17,8.493e-05,2]
[423001826,1779738640000,-500.0,8.493e-05,2]
[423001827,1779738640000,-500.0,8.493e-05,2]
[423001820,1779738640000,-812.19,8.493e-05,2]
[423001821,1779738640000,-1602.48,8.493e-05,2]
[423001822,1779738640000,-500.0,8.493e-05,2]
[423001823,1779738640000,-920.55,8.493e-05,2]
[423001817,1779738640000,-501.77899763,8.493e-05,2]
[423001818,1779738640000,-500.0,8.493e-05,2]
[423001816,1779738640000,-529.77,8.493e-05,2]
[423001819,1779738640000,-500.0,8.493e-05,2]
[423001900,1779738641000,-793.46,8.493e-05,2]
[423001913,1779738641000,-2536.98,8.493e-05,2]
[423001912,1779738641000,-500.0,8.493e-05,2]
[423001902,1779738641000,-1099.32,8.493e-05,2]
[423001894,1779738641000,-500.0,8.493e-05,2]
[423001891,1779738641000,-500.0,8.493e-05,2]
[423001897,1779738641000,-2378.46,8.493e-05,2]
[423001896,1779738641000,-501.43,8.493e-05,2]
[423001898,1779738641000,-2278.04,8.493e-05,2]
[423001895,1779738641000,-500.0,8.493e-05,2]
[423001892,1779738641000,-7396.75,8.493e-05,2]
[423001899,1779738641000,-1432.93,8.493e-05,2]
[423001901,1779738641000,-1912.51,8.493e-05,2]
[423001906,1779738641000,-500.0,8.493e-05,2]
[423001903,1779738641000,-2238.67,8.493e-05,2]
[423001907,1779738641000,-500.0,8.493e-05,2]
[423001905,1779738641000,-2575.39,8.493e-05,2]
[423001908,1779738641000,-500.0,8.493e-05,2]
[423001909,1779738641000,-2629.32,8.493e-05,2]
[423001910,1779738641000,-500.0,8.493e-05,2]
[423001911,1779738641000,-3021.77,8.493e-05,2]
[423001914,1779738641000,-667.42,8.493e-05,2]
[423001926,1779738641000,-500.0,8.493e-05,2]
[423001916,1779738641000,-1717.48,8.493e-05,2]
[423001915,1779738641000,-7902.19,8.493e-05,2]
[423001893,1779738641000,-500.0,8.493e-05,2]
[423001917,1779738641000,-5592.92,8.493e-05,2]
[423001904,1779738641000,-5356.7,8.493e-05,2]
[423001889,1779738641000,-900.35,8.493e-05,2]
[423001876,1779738641000,-500.0,8.493e-05,2]
[423001888,1779738641000,-2313.44,8.493e-05,2]
[423001919,1779738641000,-3521.43,8.493e-05,2]
[423001865,1779738641000,-500.0,8.493e-05,2]
[423001866,1779738641000,-645.89304485,8.493e-05,2]
[423001861,1779738641000,-500.0,8.493e-05,2]
[423001862,1779738641000,-500.0,8.493e-05,2]
[423001864,1779738641000,-500.0,8.493e-05,2]
[423001863,1779738641000,-500.0,8.493e-05,2]
[423001867,1779738641000,-562.14,8.493e-05,2]
[423001868,1779738641000,-937.36,8.493e-05,2]
[423001871,1779738641000,-2230.1,8.493e-05,2]
[423001869,1779738641000,-616.44,8.493e-05,2]
[423001870,1779738641000,-500.0,8.493e-05,2]
[423001879,1779738641000,-1471.7,8.493e-05,2]
[423001872,1779738641000,-1343.7,8.493e-05,2]
[423001878,1779738641000,-869.82,8.493e-05,2]
[423001877,1779738641000,-500.0,8.493e-05,2]
[423001873,1779738641000,-798.9,8.493e-05,2]
[423001874,1779738641000,-3822.85,8.493e-05,2]
[423001875,1779738641000,-5943.22,8.493e-05,2]
[423001880,1779738641000,-500.0,8.493e-05,2]
[423001881,1779738641000,-500.0,8.493e-05,2]
[423001886,1779738641000,-3273.41,8.493e-05,2]
[423001883,1779738641000,-500.0,8.493e-05,2]
[423001885,1779738641000,-500.0,8.493e-05,2]
[423001884,1779738641000,-1541.23,8.493e-05,2]
[423001882,1779738641000,-500.0,8.493e-05,2]
[423001887,1779738641000,-500.0,8.493e-05,2]
[423001890,1779738641000,-500.0,8.493e-05,2]
[423001920,1779738641000,-500.0,8.493e-05,2]
[423001918,1779738641000,-500.0,8.493e-05,2]
[423001922,1779738641000,-1580.21,8.493e-05,2]
[423001953,1779738641000,-500.0,8.767e-05,2]
[423001964,1779738641000,-1099.15,8.767e-05,2]
[423001957,1779738641000,-500.0,8.767e-05,2]
[423001960,1779738641000,-500.0,8.767e-05,2]
[423001963,1779738641000,-500.0,8.767e-05,2]
[423001959,1779738641000,-500.0,8.767e-05,2]
[423001956,1779738641000,-500.0,8.767e-05,2]
[423001962,1779738641000,-500.0,8.767e-05,2]
[423001961,1779738641000,-1770.14,8.767e-05,2]
[423001958,1779738641000,-500.0,8.767e-05,2]
[423001966,1779738641000,-500.0,8.767e-05,2]
[423001976,1779738641000,-500.0,8.767e-05,2]
[423001965,1779738641000,-500.0,8.767e-05,2]
[423001967,1779738641000,-565.16,8.767e-05,2]
[423001970,1779738641000,-1213.9,8.767e-05,2]
[423001974,1779738641000,-500.0,8.767e-05,2]
[423001968,1779738641000,-500.0,8.767e-05,2]
[423001973,1779738641000,-500.0,8.767e-05,2]
[423001971,1779738641000,-1160.51,8.767e-05,2]
[423001972,1779738641000,-500.0,8.767e-05,2]
[423001969,1779738641000,-599.27,8.767e-05,2]
[423001975,1779738641000,-529.77,8.767e-05,2]
[423001978,1779738641000,-812.19,8.767e-05,2]
[423001979,1779738641000,-1602.48,8.767e-05,2]
[423001982,1779738641000,-1160.17,8.767e-05,2]
[423001981,1779738641000,-920.55,8.767e-05,2]
[423001980,1779738641000,-500.0,8.767e-05,2]
[423001955,1779738641000,-548.95,8.767e-05,2]
[423001954,1779738641000,-612.82,8.767e-05,2]
[423001977,1779738641000,-500.0,8.767e-05,2]
[423001950,1779738641000,-151.0,8.767e-05,2]
[423001924,1779738641000,-2331.62,8.493e-05,2]
[423001952,1779738641000,-990.81,8.767e-05,2]
[423001921,1779738641000,-957.33,8.493e-05,2]
[423001923,1779738641000,-2035.13,8.493e-05,2]
[423001925,1779738641000,-500.0,8.493e-05,2]
[423001927,1779738641000,-500.0,8.493e-05,2]
[423001929,1779738641000,-500.0,8.493e-05,2]
[423001939,1779738641000,-500.0,8.493e-05,2]
[423001932,1779738641000,-500.0,8.493e-05,2]
[423001930,1779738641000,-666.79,8.493e-05,2]
[423001934,1779738641000,-9218.38,8.493e-05,2]
[423001935,1779738641000,-500.0,8.493e-05,2]
[423001936,1779738641000,-579.79,8.493e-05,2]
[423001937,1779738641000,-3640.59,8.493e-05,2]
[423001928,1779738641000,-41989.42,8.493e-05,2]
[423001931,1779738641000,-2134.73,8.493e-05,2]
[423001949,1779738641000,-500.0,8.767e-05,2]
[423001933,1779738641000,-1046.67,8.493e-05,2]
[423001945,1779738641000,-193.6512,8.63e-05,2]
[423001946,1779738641000,-3235.1669,8.767e-05,2]
[423001947,1779738641000,-500.0,8.767e-05,2]
[423001948,1779738641000,-500.0,8.767e-05,2]
[423001944,1779738641000,-572.35110002,8.614e-05,2]
[423001951,1779738641000,-151.0,8.767e-05,2]
[423001941,1779738641000,-500.0,8.493e-05,2]
[423001942,1779738641000,-500.0,8.493e-05,2]
[423001940,1779738641000,-2134.43,8.493e-05,2]
[423001938,1779738641000,-5605.86,8.493e-05,2]
[423001943,1779738641000,-213.54986934,8.562e-05,2]
[423002025,1779738642000,-616.44,8.767e-05,2]
[423002021,1779738642000,-500.0,8.767e-05,2]
[423002023,1779738642000,-562.14,8.767e-05,2]
[423002024,1779738642000,-937.36,8.767e-05,2]
[423002022,1779738642000,-500.0,8.767e-05,2]
[423002019,1779738642000,-500.0,8.767e-05,2]
[423002018,1779738642000,-500.0,8.767e-05,2]
[423002005,1779738642000,-775.55,8.767e-05,2]
[423002017,1779738642000,-500.0,8.767e-05,2]
[423002016,1779738642000,-500.0,8.767e-05,2]
[423002027,1779738642000,-2230.1,8.767e-05,2]
[423002020,1779738642000,-500.0,8.767e-05,2]
[423002026,1779738642000,-500.0,8.767e-05,2]
[423002036,1779738642000,-500.0,8.767e-05,2]
[423002040,1779738642000,-1541.23,8.767e-05,2]
[423002039,1779738642000,-500.0,8.767e-05,2]
[423002041,1779738642000,-500.0,8.767e-05,2]
[423002028,1779738642000,-1343.7,8.767e-05,2]
[423002031,1779738642000,-5943.22,8.767e-05,2]
[423002032,1779738642000,-500.0,8.767e-05,2]
[423002033,1779738642000,-500.0,8.767e-05,2]
[423002035,1779738642000,-1471.7,8.767e-05,2]
[423002038,1779738642000,-489.33536471,8.767e-05,2]
[423002037,1779738642000,-500.0,8.767e-05,2]
[423002030,1779738642000,-3822.85,8.767e-05,2]
[423002034,1779738642000,-869.82,8.767e-05,2]
[423002013,1779738642000,-589.32,8.767e-05,2]
[423002029,1779738642000,-798.9,8.767e-05,2]
[423002012,1779738642000,-786.57,8.767e-05,2]
[423001983,1779738642000,-500.0,8.767e-05,2]
[423002014,1779738642000,-1517.74,8.767e-05,2]
[423002042,1779738642000,-3273.41,8.767e-05,2]
[423001989,1779738642000,-500.0,8.767e-05,2]
[423001988,1779738642000,-500.0,8.767e-05,2]
[423001986,1779738642000,-500.0,8.767e-05,2]
[423001990,1779738642000,-500.0,8.767e-05,2]
[423001987,1779738642000,-2189.35,8.767e-05,2]
[423001985,1779738642000,-500.0,8.767e-05,2]
[423001984,1779738642000,-500.0,8.767e-05,2]
[423002003,1779738642000,-589.81,8.767e-05,2]
[423001992,1779738642000,-589.67682115,8.767e-05,2]
[423001999,1779738642000,-500.0,8.767e-05,2]
[423001991,1779738642000,-500.0,8.767e-05,2]
[423001998,1779738642000,-500.0,8.767e-05,2]
[423002011,1779738642000,-500.0,8.767e-05,2]
[423001993,1779738642000,-500.0,8.767e-05,2]
[423002002,1779738642000,-1201.0,8.767e-05,2]
[423001995,1779738642000,-1705.83,8.767e-05,2]
[423001996,1779738642000,-500.0,8.767e-05,2]
[423001997,1779738642000,-500.0,8.767e-05,2]
[423001994,1779738642000,-511.58,8.767e-05,2]
[423002001,1779738642000,-500.0,8.767e-05,2]
[423002004,1779738642000,-528.64,8.767e-05,2]
[423002009,1779738642000,-500.0,8.767e-05,2]
[423002010,1779738642000,-500.0,8.767e-05,2]
[423002006,1779738642000,-690.04,8.767e-05,2]
[423002008,1779738642000,-500.0,8.767e-05,2]
[423002007,1779738642000,-500.0,8.767e-05,2]
[423002015,1779738642000,-500.0,8.767e-05,2]
[423002000,1779738642000,-722.54,8.767e-05,2]
[423002044,1779738642000,-2313.44,8.767e-05,2]
[423002097,1779738642000,-3640.59,8.767e-05,2]
[423002046,1779738642000,-500.0,8.767e-05,2]
[423002069,1779738642000,-2536.98,8.767e-05,2]
[423002076,1779738642000,-500.0,8.767e-05,2]
[423002078,1779738642000,-1580.21,8.767e-05,2]
[423002080,1779738642000,-2331.62,8.767e-05,2]
[423002083,1779738642000,-255.20466953,8.767e-05,2]
[423002093,1779738642000,-1046.67,8.767e-05,2]
[423002084,1779738642000,-22364.98607053,8.767e-05,2]
[423002082,1779738642000,-500.0,8.767e-05,2]
[423002085,1779738642000,-5514.31215015,8.767e-05,2]
[423002088,1779738642000,-12069.35495675,8.767e-05,2]
[423002087,1779738642000,-1138.76368051,8.767e-05,2]
[423002089,1779738642000,-500.0,8.767e-05,2]
[423002091,1779738642000,-2134.73,8.767e-05,2]
[423002081,1779738642000,-500.0,8.767e-05,2]
[423002092,1779738642000,-500.0,8.767e-05,2]
[423002099,1779738642000,-500.0,8.767e-05,2]
[423002101,1779738642000,-500.0,8.767e-05,2]
[423002096,1779738642000,-579.79,8.767e-05,2]
[423002095,1779738642000,-500.0,8.767e-05,2]
[423002100,1779738642000,-2134.43,8.767e-05,2]
[423002106,1779738642000,-500.0,8.938e-05,2]
[423002103,1779738642000,-568.9669065,8.85e-05,2]
[423002105,1779738642000,-213.54986934,8.904e-05,2]
[423002104,1779738642000,-469.0,8.893e-05,2]
[423002102,1779738642000,-500.0,8.767e-05,2]
[423002094,1779738642000,-9218.38,8.767e-05,2]
[423002098,1779738642000,-5605.86,8.767e-05,2]
[423002045,1779738642000,-900.35,8.767e-05,2]
[423002090,1779738642000,-666.79,8.767e-05,2]
[423002077,1779738642000,-957.33,8.767e-05,2]
[423002086,1779738642000,-902.00314206,8.767e-05,2]
[423002075,1779738642000,-3521.43,8.767e-05,2]
[423002043,1779738642000,-500.0,8.767e-05,2]
[423002079,1779738642000,-2035.13,8.767e-05,2]
[423002051,1779738642000,-500.0,8.767e-05,2]
[423002053,1779738642000,-2378.46,8.767e-05,2]
[423002054,1779738642000,-2278.04,8.767e-05,2]
[423002049,1779738642000,-500.0,8.767e-05,2]
[423002047,1779738642000,-500.0,8.767e-05,2]
[423002048,1779738642000,-7396.75,8.767e-05,2]
[423002050,1779738642000,-500.0,8.767e-05,2]
[423002057,1779738642000,-1912.51,8.767e-05,2]
[423002061,1779738642000,-2575.39,8.767e-05,2]
[423002060,1779738642000,-5356.7,8.767e-05,2]
[423002059,1779738642000,-2238.67,8.767e-05,2]
[423002062,1779738642000,-500.0,8.767e-05,2]
[423002052,1779738642000,-501.43,8.767e-05,2]
[423002058,1779738642000,-1099.32,8.767e-05,2]
[423002074,1779738642000,-500.0,8.767e-05,2]
[423002055,1779738642000,-1432.93,8.767e-05,2]
[423002072,1779738642000,-1717.48,8.767e-05,2]
[423002071,1779738642000,-7902.19,8.767e-05,2]
[423002070,1779738642000,-667.42,8.767e-05,2]
[423002068,1779738642000,-500.0,8.767e-05,2]
[423002065,1779738642000,-2629.32,8.767e-05,2]
[423002073,1779738642000,-5592.92,8.767e-05,2]
[423002067,1779738642000,-3021.77,8.767e-05,2]
[423002063,1779738642000,-500.0,8.767e-05,2]
[423002064,1779738642000,-500.0,8.767e-05,2]
[423002056,1779738642000,-793.46,8.767e-05,2]
[423002066,1779738642000,-500.0,8.767e-05,2]
[423002151,1779738643000,-1160.17,9.041e-05,2]
[423002150,1779738643000,-920.55,9.041e-05,2]
[423002152,1779738643000,-500.0,9.041e-05,2]
[423002156,1779738643000,-2189.35,9.041e-05,2]
[423002148,1779738643000,-1602.48,9.041e-05,2]
[423002153,1779738643000,-500.0,9.041e-05,2]
[423002149,1779738643000,-500.0,9.041e-05,2]
[423002145,1779738643000,-500.0,9.041e-05,2]
[423002147,1779738643000,-812.19,9.041e-05,2]
[423002143,1779738643000,-500.0,9.041e-05,2]
[423002155,1779738643000,-500.0,9.041e-05,2]
[423002157,1779738643000,-500.0,9.041e-05,2]
[423002146,1779738643000,-500.0,9.041e-05,2]
[423002162,1779738643000,-511.58,9.041e-05,2]
[423002183,1779738643000,-589.32,9.041e-05,2]
[423002163,1779738643000,-1705.83,9.041e-05,2]
[423002160,1779738643000,-500.0,9.041e-05,2]
[423002161,1779738643000,-500.0,9.041e-05,2]
[423002167,1779738643000,-500.0,9.041e-05,2]
[423002171,1779738643000,-500.0,9.041e-05,2]
[423002165,1779738643000,-500.0,9.041e-05,2]
[423002170,1779738643000,-722.54,9.041e-05,2]
[423002164,1779738643000,-500.0,9.041e-05,2]
[423002158,1779738643000,-500.0,9.041e-05,2]
[423002169,1779738643000,-500.0,9.041e-05,2]
[423002173,1779738643000,-589.81,9.041e-05,2]
[423002172,1779738643000,-1201.0,9.041e-05,2]
[423002154,1779738643000,-500.0,9.041e-05,2]
[423002159,1779738643000,-500.0,9.041e-05,2]
[423002144,1779738643000,-529.77,9.041e-05,2]
[423002108,1779738643000,-2125.58137457,8.949e-05,5]
[423002142,1779738643000,-500.0,9.041e-05,2]
[423002174,1779738643000,-528.64,9.041e-05,2]
[423002107,1779738643000,-537.6845,8.938e-05,2]
[423002109,1779738643000,-574.75105962,9.025e-05,2]
[423002111,1779738643000,-500.0,9.041e-05,2]
[423002110,1779738643000,-3235.1669,9.041e-05,2]
[423002112,1779738643000,-500.0,9.041e-05,2]
[423002113,1779738643000,-408.97263792,9.041e-05,2]
[423002115,1779738643000,-151.0,9.041e-05,2]
[423002114,1779738643000,-151.0,9.041e-05,2]
[423002124,1779738643000,-500.0,9.041e-05,2]
[423002118,1779738643000,-612.82,9.041e-05,2]
[423002122,1779738643000,-500.0,9.041e-05,2]
[423002120,1779738643000,-500.0,9.041e-05,2]
[423002117,1779738643000,-500.0,9.041e-05,2]
[423002121,1779738643000,-500.0,9.041e-05,2]
[423002116,1779738643000,-990.81,9.041e-05,2]
[423002119,1779738643000,-548.95,9.041e-05,2]
[423002123,1779738643000,-500.0,9.041e-05,2]
[423002125,1779738643000,-1770.14,9.041e-05,2]
[423002127,1779738643000,-500.0,9.041e-05,2]
[423002137,1779738643000,-500.0,9.041e-05,2]
[423002138,1779738643000,-599.27,9.041e-05,2]
[423002136,1779738643000,-565.16,9.041e-05,2]
[423002129,1779738643000,-500.0,9.041e-05,2]
[423002139,1779738643000,-1213.9,9.041e-05,2]
[423002134,1779738643000,-500.0,9.041e-05,2]
[423002131,1779738643000,-1099.15,9.041e-05,2]
[423002140,1779738643000,-1160.51,9.041e-05,2]
[423002141,1779738643000,-500.0,9.041e-05,2]
[423002132,1779738643000,-500.0,9.041e-05,2]
[423002175,1779738643000,-775.55,9.041e-05,2]
[423002193,1779738643000,-562.14,9.041e-05,2]
[423002179,1779738643000,-500.0,9.041e-05,2]
[423002222,1779738643000,-500.0,9.041e-05,2]
[423002223,1779738643000,-501.43,9.041e-05,2]
[423002213,1779738643000,-2313.44,9.041e-05,2]
[423002211,1779738643000,-3273.41,9.041e-05,2]
[423002226,1779738643000,-1432.93,9.041e-05,2]
[423002215,1779738643000,-500.0,9.041e-05,2]
[423002225,1779738643000,-2278.04,9.041e-05,2]
[423002214,1779738643000,-900.35,9.041e-05,2]
[423002224,1779738643000,-2378.46,9.041e-05,2]
[423002220,1779738643000,-500.0,9.041e-05,2]
[423002217,1779738643000,-500.0,9.041e-05,2]
[423002218,1779738643000,-7396.75,9.041e-05,2]
[423002221,1779738643000,-500.0,9.041e-05,2]
[423002212,1779738643000,-500.0,9.041e-05,2]
[423002236,1779738643000,-2629.32,9.041e-05,2]
[423002237,1779738643000,-500.0,9.041e-05,2]
[423002239,1779738643000,-500.0,9.041e-05,2]
[423002227,1779738643000,-793.46,9.041e-05,2]
[423002230,1779738643000,-2238.67,9.041e-05,2]
[423002232,1779738643000,-2575.39,9.041e-05,2]
[423002229,1779738643000,-1099.32,9.041e-05,2]
[423002233,1779738643000,-500.0,9.041e-05,2]
[423002234,1779738643000,-500.0,9.041e-05,2]
[423002231,1779738643000,-5356.7,9.041e-05,2]
[423002228,1779738643000,-1912.51,9.041e-05,2]
[423002235,1779738643000,-500.0,9.041e-05,2]
[423002241,1779738643000,-667.42,9.041e-05,2]
[423002176,1779738643000,-690.04,9.041e-05,2]
[423002238,1779738643000,-3021.77,9.041e-05,2]
[423002206,1779738643000,-500.0,9.041e-05,2]
[423002240,1779738643000,-2536.98,9.041e-05,2]
[423002202,1779738643000,-500.0,9.041e-05,2]
[423002178,1779738643000,-500.0,9.041e-05,2]
[423002181,1779738643000,-500.0,9.041e-05,2]
[423002177,1779738643000,-500.0,9.041e-05,2]
[423002182,1779738643000,-786.57,9.041e-05,2]
[423002180,1779738643000,-500.0,9.041e-05,2]
[423002184,1779738643000,-1517.74,9.041e-05,2]
[423002188,1779738643000,-500.0,9.041e-05,2]
[423002186,1779738643000,-500.0,9.041e-05,2]
[423002208,1779738643000,-500.0,9.041e-05,2]
[423002242,1779738643000,-2293.1087013,9.041e-05,2]
[423002191,1779738643000,-479.18342755,9.041e-05,2]
[423002185,1779738643000,-500.0,9.041e-05,2]
[423002194,1779738643000,-937.36,9.041e-05,2]
[423002196,1779738643000,-500.0,9.041e-05,2]
[423002189,1779738643000,-500.0,9.041e-05,2]
[423002190,1779738643000,-500.0,9.041e-05,2]
[423002201,1779738643000,-5943.22,9.041e-05,2]
[423002192,1779738643000,-500.0,9.041e-05,2]
[423002204,1779738643000,-869.82,9.041e-05,2]
[423002203,1779738643000,-500.0,9.041e-05,2]
[423002200,1779738643000,-3822.85,9.041e-05,2]
[423002207,1779738643000,-500.0,9.041e-05,2]
[423002205,1779738643000,-1471.7,9.041e-05,2]
[423002209,1779738643000,-1541.23,9.041e-05,2]
[423002210,1779738643000,-500.0,9.041e-05,2]
[423002199,1779738643000,-798.9,9.041e-05,2]
[423002195,1779738643000,-616.44,9.041e-05,2]
[423002197,1779738643000,-2230.1,9.041e-05,2]
[423002187,1779738643000,-500.0,9.041e-05,2]
[423002198,1779738643000,-1343.7,9.041e-05,2]
[423002281,1779738644000,-152.0,9.267e-05,7]
[423002284,1779738644000,-250.0,9.3e-05,2]
[423002279,1779738644000,-492.0,9.168e-05,2]
[423002291,1779738644000,-3235.1669,9.315e-05,2]
[423002282,1779738644000,-250.0,9.3e-05,2]
[423002265,1779738644000,-5605.86,9.041e-05,2]
[423002290,1779738644000,-259.9,9.3e-05,2]
[423002280,1779738644000,-213.54986934,9.247e-05,2]
[423002275,1779738644000,-173.73069484,9.101e-05,2]
[423002274,1779738644000,-178.22363383,9.101e-05,7]
[423002270,1779738644000,-198.34371312,9.101e-05,7]
[423002283,1779738644000,-250.0,9.3e-05,2]
[423002285,1779738644000,-250.0,9.3e-05,2]
[423002296,1779738644000,-169.03510474,9.315e-05,2]
[423002287,1779738644000,-250.0,9.3e-05,2]
[423002289,1779738644000,-250.0,9.3e-05,2]
[423002286,1779738644000,-250.0,9.3e-05,2]
[423002292,1779738644000,-213.74888556,9.315e-05,2]
[423002305,1779738644000,-500.0,9.315e-05,2]
[423002293,1779738644000,-500.0,9.315e-05,2]
[423002297,1779738644000,-990.81,9.315e-05,2]
[423002298,1779738644000,-500.0,9.315e-05,2]
[423002304,1779738644000,-500.0,9.315e-05,2]
[423002295,1779738644000,-151.0,9.315e-05,2]
[423002294,1779738644000,-500.0,9.315e-05,2]
[423002303,1779738644000,-500.0,9.315e-05,2]
[423002268,1779738644000,-500.0,9.041e-05,2]
[423002288,1779738644000,-250.0,9.3e-05,2]
[423002276,1779738644000,-10000.0,9.123e-05,2]
[423002253,1779738644000,-500.0,9.041e-05,2]
[423002267,1779738644000,-2134.43,9.041e-05,2]
[423002301,1779738644000,-500.0,9.315e-05,2]
[423002248,1779738644000,-500.0,9.041e-05,2]
[423002246,1779738644000,-500.0,9.041e-05,2]
[423002245,1779738644000,-5592.92,9.041e-05,2]
[423002244,1779738644000,-1717.48,9.041e-05,2]
[423002243,1779738644000,-5609.0812987,9.041e-05,2]
[423002249,1779738644000,-957.33,9.041e-05,2]
[423002250,1779738644000,-1580.21,9.041e-05,2]
[423002247,1779738644000,-3521.43,9.041e-05,2]
[423002252,1779738644000,-2331.62,9.041e-05,2]
[423002263,1779738644000,-579.79,9.041e-05,2]
[423002264,1779738644000,-3640.59,9.041e-05,2]
[423002262,1779738644000,-500.0,9.041e-05,2]
[423002269,1779738644000,-500.0,9.041e-05,2]
[423002255,1779738644000,-41989.42,9.041e-05,2]
[423002257,1779738644000,-666.79,9.041e-05,2]
[423002258,1779738644000,-2134.73,9.041e-05,2]
[423002254,1779738644000,-500.0,9.041e-05,2]
[423002256,1779738644000,-500.0,9.041e-05,2]
[423002261,1779738644000,-9218.38,9.041e-05,2]
[423002260,1779738644000,-1046.67,9.041e-05,2]
[423002259,1779738644000,-500.0,9.041e-05,2]
[423002266,1779738644000,-329.36708501,9.041e-05,2]
[423002277,1779738644000,-2613.35079656,9.129e-05,2]
[423002273,1779738644000,-170.91305686,9.101e-05,7]
[423002271,1779738644000,-212.03225786,9.101e-05,7]
[423002278,1779738644000,-1000.0,9.168e-05,2]
[423002272,1779738644000,-162.16708219,9.101e-05,2]